{"text_format":"1","workbook":"xlsx","n_sheets":3,"sheets":["便利な札","並べ替えて競技に","基本シート"],"not_rendered":{"charts":0,"images":0,"macros":1,"external_links":0,"defined_names":1,"comments":0,"pivot_tables":0},"unopened":[],"bounds":{"document_bytes":16777216,"sheet_cells":100000,"rows_first":2000,"rows_last":500,"rows_between":2000,"halvings":0,"cell_chars":16384,"cell_head_chars":4096},"cells_cut":0,"cells_raw":0,"read":"whole","date_system":"1900"}

{"sheet":"便利な札","index":0,"n_rows":41,"n_cols":15,"rows_kept":41,"cut":false,"hidden":false,"merged":[[3,10,4,10],[3,11,4,11],[3,12,4,12],[3,13,4,13],[3,14,4,14],[1,10,2,10],[1,11,2,11],[1,12,2,12],[1,13,2,13],[1,14,2,14],[7,10,8,10],[7,11,8,11],[7,12,8,12],[7,13,8,13],[7,14,8,14],[5,10,6,10],[5,11,6,11],[5,12,6,12],[5,13,6,13],[5,14,6,14],[11,10,12,10],[11,11,12,11],[11,12,12,12],[11,13,12,13],[11,14,12,14],[9,10,10,10],[9,11,10,11],[9,12,10,12],[9,13,10,13],[9,14,10,14],[15,10,16,10],[15,11,16,11],[15,12,16,12],[15,13,16,13],[15,14,16,14],[13,10,14,10],[13,11,14,11],[13,12,14,12],[13,13,14,13],[13,14,14,14],[19,10,20,10],[19,11,20,11],[19,12,20,12],[19,13,20,13],[19,14,20,14],[17,10,18,10],[17,11,18,11],[17,12,18,12],[17,13,18,13],[17,14,18,14],[23,10,24,10],[23,11,24,11],[23,12,24,12],[23,13,24,13],[23,14,24,14],[21,10,22,10],[21,11,22,11],[21,12,22,12],[21,13,22,13],[21,14,22,14],[27,10,28,10],[27,11,28,11],[27,12,28,12],[27,13,28,13],[27,14,28,14],[25,10,26,10],[25,11,26,11],[25,12,26,12],[25,13,26,13],[25,14,26,14],[31,10,32,10],[31,11,32,11],[31,12,32,12],[31,13,32,13],[31,14,32,14],[29,10,30,10],[29,11,30,11],[29,12,30,12],[29,13,30,13],[29,14,30,14],[35,10,36,10],[35,11,36,11],[35,12,36,12],[35,13,36,13],[35,14,36,14],[33,10,34,10],[33,11,34,11],[33,12,34,12],[33,13,34,13],[33,14,34,14],[39,10,40,10],[39,11,40,11],[39,12,40,12],[39,13,40,13],[39,14,40,14],[37,10,38,10],[37,11,38,11],[37,12,38,12],[37,13,38,13],[37,14,38,14]]}
[]
[null,null,null,null,null,"E","D","C","B","A",{"$f":"VLOOKUP(A3,基本シート!$A$5:$F$104,6)","v":"おくやまに　もみぢふみわけ　なくしかの　こゑきくときぞ　あきはかなしき"},{"$f":"VLOOKUP(B3,基本シート!$A$5:$F$104,6)","v":"たごのうらに　うちいでてみれば　しろたへの　ふじのたかねに　ゆきはふりつつ"},{"$f":"VLOOKUP(C3,基本シート!$A$5:$F$104,6)","v":"あしびきの　やまどりのをの　しだりをの　ながながしよを　ひとりかもねむ"},{"$f":"VLOOKUP(D3,基本シート!$A$5:$F$104,6)","v":"はるすぎて　なつきにけらし　しろたへの　ころもほすてふ　あまのかぐやま"},{"$f":"VLOOKUP(E3,基本シート!$A$5:$F$104,6)","v":"あきのたの　かりほのいほの　とまをあらみ　わがころもでは　つゆにぬれつつ"}]
[{"$f":"B3+1","v":5},4,3,2,1,{"$f":"VLOOKUP(A3,基本シート!$A$5:$E$104,5)","v":"こゑきくときそあきはかなしき"},{"$f":"VLOOKUP(B3,基本シート!$A$5:$E$104,5)","v":"ふしのたかねにゆきはふりつつ"},{"$f":"VLOOKUP(C3,基本シート!$A$5:$E$104,5)","v":"なかなかしよをひとりかもねむ"},{"$f":"VLOOKUP(D3,基本シート!$A$5:$E$104,5)","v":"ころもほすてふあまのかくやま"},{"$f":"VLOOKUP(E3,基本シート!$A$5:$E$104,5)","v":"わかころもてはつゆにぬれつつ"}]
[null,null,null,null,null,"J","I","H","G","F",{"$f":"VLOOKUP(A5,基本シート!$A$5:$F$104,6)","v":"これやこの　ゆくもかへるも　わかれては　しるもしらぬも　あふさかのせき"},{"$f":"VLOOKUP(B5,基本シート!$A$5:$F$104,6)","v":"はなのいろは　うつりにけりな　いたづらに　わがみよにふる　ながめせしまに"},{"$f":"VLOOKUP(C5,基本シート!$A$5:$F$104,6)","v":"わがいほは　みやこのたつみ　しかぞすむ　よをうぢやまと　ひとはいふなり"},{"$f":"VLOOKUP(D5,基本シート!$A$5:$F$104,6)","v":"あまのはら　ふりさけみれば　かすがなる　みかさのやまに　いでしつきかも"},{"$f":"VLOOKUP(E5,基本シート!$A$5:$F$104,6)","v":"かささぎの　わたせるはしに　おくしもの　しろきをみれば　よぞふけにける"}]
[10,9,8,7,{"$f":"A3+1","v":6},{"$f":"VLOOKUP(A5,基本シート!$A$5:$E$104,5)","v":"しるもしらぬもあふさかのせき"},{"$f":"VLOOKUP(B5,基本シート!$A$5:$E$104,5)","v":"わかみよにふるなかめせしまに"},{"$f":"VLOOKUP(C5,基本シート!$A$5:$E$104,5)","v":"よをうちやまとひとはいふなり"},{"$f":"VLOOKUP(D5,基本シート!$A$5:$E$104,5)","v":"みかさのやまにいてしつきかも"},{"$f":"VLOOKUP(E5,基本シート!$A$5:$E$104,5)","v":"しろきをみれはよそふけにける"}]
[null,null,null,null,null,"O","N","M","L","K",{"$f":"VLOOKUP(A7,基本シート!$A$5:$F$104,6)","v":"きみがため　はるののにいでて　わかなつむ　わがころもでに　ゆきはふりつつ"},{"$f":"VLOOKUP(B7,基本シート!$A$5:$F$104,6)","v":"みちのくの　しのぶもぢずり　たれゆゑに　みだれそめにし　われならなくに"},{"$f":"VLOOKUP(C7,基本シート!$A$5:$F$104,6)","v":"つくばねの　みねよりおつる　みなのがは　こひぞつもりて　ふちとなりぬる"},{"$f":"VLOOKUP(D7,基本シート!$A$5:$F$104,6)","v":"あまつかぜ　くものかよひぢ　ふきとぢよ　をとめのすがた　しばしとどめむ"},{"$f":"VLOOKUP(E7,基本シート!$A$5:$F$104,6)","v":"わたのはら　やそしまかけて　こぎいでぬと　ひとにはつげよ　あまのつりぶね"}]
[15,14,13,12,{"$f":"A5+1","v":11},{"$f":"VLOOKUP(A7,基本シート!$A$5:$E$104,5)","v":"わかころもてにゆきはふりつつ"},{"$f":"VLOOKUP(B7,基本シート!$A$5:$E$104,5)","v":"みたれそめにしわれならなくに"},{"$f":"VLOOKUP(C7,基本シート!$A$5:$E$104,5)","v":"こひそつもりてふちとなりぬる"},{"$f":"VLOOKUP(D7,基本シート!$A$5:$E$104,5)","v":"をとめのすかたしはしととめむ"},{"$f":"VLOOKUP(E7,基本シート!$A$5:$E$104,5)","v":"ひとにはつけよあまのつりふね"}]
[null,null,null,null,null,"T","S","R","Q","P",{"$f":"VLOOKUP(A9,基本シート!$A$5:$F$104,6)","v":"わびぬれば　いまはたおなじ　なにはなる　みをつくしても　あはむとぞおもふ"},{"$f":"VLOOKUP(B9,基本シート!$A$5:$F$104,6)","v":"なにはがた　みじかきあしの　ふしのまも　あはでこのよを　すぐしてよとや"},{"$f":"VLOOKUP(C9,基本シート!$A$5:$F$104,6)","v":"すみのえの　きしによるなみ　よるさへや　ゆめのかよひぢ　ひとめよくらむ"},{"$f":"VLOOKUP(D9,基本シート!$A$5:$F$104,6)","v":"ちはやぶる　かみよもきかず　たつたがは　からくれなゐに　みづくくるとは"},{"$f":"VLOOKUP(E9,基本シート!$A$5:$F$104,6)","v":"たちわかれ　いなばのやまの　みねにおふる　まつとしきかば　いまかへりこむ"}]
[20,19,18,17,{"$f":"A7+1","v":16},{"$f":"VLOOKUP(A9,基本シート!$A$5:$E$104,5)","v":"みをつくしてもあはむとそおもふ"},{"$f":"VLOOKUP(B9,基本シート!$A$5:$E$104,5)","v":"あはてこのよをすくしてよとや"},{"$f":"VLOOKUP(C9,基本シート!$A$5:$E$104,5)","v":"ゆめのかよひちひとめよくらむ"},{"$f":"VLOOKUP(D9,基本シート!$A$5:$E$104,5)","v":"からくれなゐにみつくくるとは"},{"$f":"VLOOKUP(E9,基本シート!$A$5:$E$104,5)","v":"まつとしきかはいまかへりこむ"}]
[null,null,null,null,null,"Y","X","W","V","U",{"$f":"VLOOKUP(A11,基本シート!$A$5:$F$104,6)","v":"なにしおはば　あふさかやまの　さねかづら　ひとにしられで　くるよしもがな"},{"$f":"VLOOKUP(B11,基本シート!$A$5:$F$104,6)","v":"このたびは　ぬさもとりあへず　たむけやま　もみぢのにしき　かみのまにまに"},{"$f":"VLOOKUP(C11,基本シート!$A$5:$F$104,6)","v":"つきみれば　ちぢにものこそ　かなしけれ　わがみひとつの　あきにはあらねど"},{"$f":"VLOOKUP(D11,基本シート!$A$5:$F$104,6)","v":"ふくからに　あきのくさきの　しをるれば　むべやまかぜを　あらしといふらむ"},{"$f":"VLOOKUP(E11,基本シート!$A$5:$F$104,6)","v":"いまこむと　いひしばかりに　ながつきの　ありあけのつきを　まちいでつるかな"}]
[25,24,23,22,{"$f":"A9+1","v":21},{"$f":"VLOOKUP(A11,基本シート!$A$5:$E$104,5)","v":"ひとにしられてくるよしもかな"},{"$f":"VLOOKUP(B11,基本シート!$A$5:$E$104,5)","v":"もみちのにしきかみのまにまに"},{"$f":"VLOOKUP(C11,基本シート!$A$5:$E$104,5)","v":"わかみひとつのあきにはあらねと"},{"$f":"VLOOKUP(D11,基本シート!$A$5:$E$104,5)","v":"むへやまかせをあらしといふらむ"},{"$f":"VLOOKUP(E11,基本シート!$A$5:$E$104,5)","v":"ありあけのつきをまちいてつるかな"}]
[null,null,null,null,null,{"$f":"A13","v":30},{"$f":"B13","v":29},{"$f":"C13","v":28},{"$f":"D13","v":27},"Z",{"$f":"VLOOKUP(A13,基本シート!$A$5:$F$104,6)","v":"ありあけの　つれなくみえし　わかれより　あかつきばかり　うきものはなし"},{"$f":"VLOOKUP(B13,基本シート!$A$5:$F$104,6)","v":"こころあてに　をらばやをらむ　はつしもの　おきまどはせる　しらぎくのはな"},{"$f":"VLOOKUP(C13,基本シート!$A$5:$F$104,6)","v":"やまざとは　ふゆぞさびしさ　まさりける　ひとめもくさも　かれぬとおもへば"},{"$f":"VLOOKUP(D13,基本シート!$A$5:$F$104,6)","v":"みかのはら　わきてながるる　いづみがは　いつみきとてか　こひしかるらむ"},{"$f":"VLOOKUP(E13,基本シート!$A$5:$F$104,6)","v":"をぐらやま　みねのもみぢば　こころあらば　いまひとたびの　みゆきまたなむ"}]
[30,29,28,27,{"$f":"A11+1","v":26},{"$f":"VLOOKUP(A13,基本シート!$A$5:$E$104,5)","v":"あかつきはかりうきものはなし"},{"$f":"VLOOKUP(B13,基本シート!$A$5:$E$104,5)","v":"おきまとはせるしらきくのはな"},{"$f":"VLOOKUP(C13,基本シート!$A$5:$E$104,5)","v":"ひとめもくさもかれぬとおもへは"},{"$f":"VLOOKUP(D13,基本シート!$A$5:$E$104,5)","v":"いつみきとてかこひしかるらむ"},{"$f":"VLOOKUP(E13,基本シート!$A$5:$E$104,5)","v":"いまひとたひのみゆきまたなむ"}]
[null,null,null,null,null,{"$f":"A15","v":35},{"$f":"B15","v":34},{"$f":"C15","v":33},{"$f":"D15","v":32},{"$f":"E15","v":31},{"$f":"VLOOKUP(A15,基本シート!$A$5:$F$104,6)","v":"ひとはいさ　こころもしらず　ふるさとは　はなぞむかしの　かににほひける"},{"$f":"VLOOKUP(B15,基本シート!$A$5:$F$104,6)","v":"たれをかも　しるひとにせむ　たかさごの　まつもむかしの　ともならなくに"},{"$f":"VLOOKUP(C15,基本シート!$A$5:$F$104,6)","v":"ひさかたの　ひかりのどけき　はるのひに　しづごころなく　はなのちるらむ"},{"$f":"VLOOKUP(D15,基本シート!$A$5:$F$104,6)","v":"やまがはに　かぜのかけたる　しがらみは　ながれもあへぬ　もみぢなりけり"},{"$f":"VLOOKUP(E15,基本シート!$A$5:$F$104,6)","v":"あさぼらけ　ありあけのつきと　みるまでに　よしののさとに　ふれるしらゆき"}]
[35,34,33,32,{"$f":"A13+1","v":31},{"$f":"VLOOKUP(A15,基本シート!$A$5:$E$104,5)","v":"はなそむかしのかににほひける"},{"$f":"VLOOKUP(B15,基本シート!$A$5:$E$104,5)","v":"まつもむかしのともならなくに"},{"$f":"VLOOKUP(C15,基本シート!$A$5:$E$104,5)","v":"しつこころなくはなのちるらむ"},{"$f":"VLOOKUP(D15,基本シート!$A$5:$E$104,5)","v":"なかれもあへぬもみちなりけり"},{"$f":"VLOOKUP(E15,基本シート!$A$5:$E$104,5)","v":"よしののさとにふれるしらゆき"}]
[null,null,null,null,null,{"$f":"A17","v":40},{"$f":"B17","v":39},{"$f":"C17","v":38},{"$f":"D17","v":37},{"$f":"E17","v":36},{"$f":"VLOOKUP(A17,基本シート!$A$5:$F$104,6)","v":"しのぶれど　いろにいでにけり　わがこひは　ものやおもふと　ひとのとふまで"},{"$f":"VLOOKUP(B17,基本シート!$A$5:$F$104,6)","v":"あさぢふの　をののしのはら　しのぶれど　あまりてなどか　ひとのこひしき"},{"$f":"VLOOKUP(C17,基本シート!$A$5:$F$104,6)","v":"わすらるる　みをばおもはず　ちかひてし　ひとのいのちの　をしくもあるかな"},{"$f":"VLOOKUP(D17,基本シート!$A$5:$F$104,6)","v":"しらつゆに　かぜのふきしく　あきののは　つらぬきとめぬ　たまぞちりける"},{"$f":"VLOOKUP(E17,基本シート!$A$5:$F$104,6)","v":"なつのよは　まだよひながら　あけぬるを　くものいづこに　つきやどるらむ"}]
[40,39,38,37,{"$f":"A15+1","v":36},{"$f":"VLOOKUP(A17,基本シート!$A$5:$E$104,5)","v":"ものやおもふとひとのとふまて"},{"$f":"VLOOKUP(B17,基本シート!$A$5:$E$104,5)","v":"あまりてなとかひとのこひしき"},{"$f":"VLOOKUP(C17,基本シート!$A$5:$E$104,5)","v":"ひとのいのちのをしくもあるかな"},{"$f":"VLOOKUP(D17,基本シート!$A$5:$E$104,5)","v":"つらぬきとめぬたまそちりける"},{"$f":"VLOOKUP(E17,基本シート!$A$5:$E$104,5)","v":"くものいつこにつきやとるらむ"}]
[null,null,null,null,null,{"$f":"A19","v":45},{"$f":"B19","v":44},{"$f":"C19","v":43},{"$f":"D19","v":42},{"$f":"E19","v":41},{"$f":"VLOOKUP(A19,基本シート!$A$5:$F$104,6)","v":"あはれとも　いふべき人は　思ほえで　みのいたづらに　なりぬべきかな"},{"$f":"VLOOKUP(B19,基本シート!$A$5:$F$104,6)","v":"あふことの　たえてしなくは　なかなかに　ひとをもみをも　うらみざらまし"},{"$f":"VLOOKUP(C19,基本シート!$A$5:$F$104,6)","v":"あひみての　のちのこころに　くらぶれば　むかしはものを　おもはざりけり"},{"$f":"VLOOKUP(D19,基本シート!$A$5:$F$104,6)","v":"ちぎりきな　かたみにそでを　しぼりつつ　すゑのまつやま　なみこさじとは"},{"$f":"VLOOKUP(E19,基本シート!$A$5:$F$104,6)","v":"こひすてふ　わがなはまだき　たちにけり　ひとしれずこそ　おもひそめしか"}]
[45,44,43,42,{"$f":"A17+1","v":41},{"$f":"VLOOKUP(A19,基本シート!$A$5:$E$104,5)","v":"みのいたつらになりぬへきかな"},{"$f":"VLOOKUP(B19,基本シート!$A$5:$E$104,5)","v":"ひとをもみをもうらみさらまし"},{"$f":"VLOOKUP(C19,基本シート!$A$5:$E$104,5)","v":"むかしはものをおもはさりけり"},{"$f":"VLOOKUP(D19,基本シート!$A$5:$E$104,5)","v":"すゑのまつやまなみこさしとは"},{"$f":"VLOOKUP(E19,基本シート!$A$5:$E$104,5)","v":"ひとしれすこそおもひそめしか"}]
[null,null,null,null,null,{"$f":"A21","v":50},{"$f":"B21","v":49},{"$f":"C21","v":48},{"$f":"D21","v":47},{"$f":"E21","v":46},{"$f":"VLOOKUP(A21,基本シート!$A$5:$F$104,6)","v":"きみがため　をしからざりし　いのちさへ　ながくもがなと　おもひけるかな"},{"$f":"VLOOKUP(B21,基本シート!$A$5:$F$104,6)","v":"みかきもり　ゑじのたくひの　よるはもえ　ひるはきえつつ　ものをこそおもへ"},{"$f":"VLOOKUP(C21,基本シート!$A$5:$F$104,6)","v":"かぜをいたみ　いはうつなみの　おのれのみ　くだけてものを　おもふころかな"},{"$f":"VLOOKUP(D21,基本シート!$A$5:$F$104,6)","v":"やへむぐら　しげれるやどの　さびしきに　ひとこそみえね　あきはきにけり"},{"$f":"VLOOKUP(E21,基本シート!$A$5:$F$104,6)","v":"ゆらのとを　わたるふなびと　かぢをたえ　ゆくへもしらぬ　こひのみちかな"}]
[50,49,48,47,{"$f":"A19+1","v":46},{"$f":"VLOOKUP(A21,基本シート!$A$5:$E$104,5)","v":"なかくもかなとおもひけるかな"},{"$f":"VLOOKUP(B21,基本シート!$A$5:$E$104,5)","v":"ひるはきえつつものをこそおもへ"},{"$f":"VLOOKUP(C21,基本シート!$A$5:$E$104,5)","v":"くたけてものをおもふころかな"},{"$f":"VLOOKUP(D21,基本シート!$A$5:$E$104,5)","v":"ひとこそみえねあきはきにけり"},{"$f":"VLOOKUP(E21,基本シート!$A$5:$E$104,5)","v":"ゆくへもしらぬこひのみちかな"}]
[null,null,null,null,null,{"$f":"A23","v":55},{"$f":"B23","v":54},{"$f":"C23","v":53},{"$f":"D23","v":52},{"$f":"E23","v":51},{"$f":"VLOOKUP(A23,基本シート!$A$5:$F$104,6)","v":"たきのおとは　たえてひさしく　なりぬれど　なこそながれて　なほきこえけれ"},{"$f":"VLOOKUP(B23,基本シート!$A$5:$F$104,6)","v":"わすれじの　ゆくすゑまでは　かたければ　けふをかぎりの　いのちともがな"},{"$f":"VLOOKUP(C23,基本シート!$A$5:$F$104,6)","v":"なげきつつ　ひとりぬるよの　あくるまは　いかにひさしき　ものとかはしる"},{"$f":"VLOOKUP(D23,基本シート!$A$5:$F$104,6)","v":"あけぬれば　くるるものとは　しりながら　なほうらめしき　あさぼらけかな"},{"$f":"VLOOKUP(E23,基本シート!$A$5:$F$104,6)","v":"かくとだに　えやはいぶきの　さしもぐさ　さしもしらじな　もゆるおもひを"}]
[55,54,53,52,{"$f":"A21+1","v":51},{"$f":"VLOOKUP(A23,基本シート!$A$5:$E$104,5)","v":"なこそなかれてなほきこえけれ"},{"$f":"VLOOKUP(B23,基本シート!$A$5:$E$104,5)","v":"けふをかきりのいのちともかな"},{"$f":"VLOOKUP(C23,基本シート!$A$5:$E$104,5)","v":"いかにひさしきものとかはしる"},{"$f":"VLOOKUP(D23,基本シート!$A$5:$E$104,5)","v":"なほうらめしきあさほらけかな"},{"$f":"VLOOKUP(E23,基本シート!$A$5:$E$104,5)","v":"さしもしらしなもゆるおもひを"}]
[null,null,null,null,null,{"$f":"A25","v":60},{"$f":"B25","v":59},{"$f":"C25","v":58},{"$f":"D25","v":57},{"$f":"E25","v":56},{"$f":"VLOOKUP(A25,基本シート!$A$5:$F$104,6)","v":"おほえやま　いくののみちの　とほければ　まだふみもみず　あまのはしだて"},{"$f":"VLOOKUP(B25,基本シート!$A$5:$F$104,6)","v":"やすらはで　ねなましものを　さよふけて　かたぶくまでの　つきをみしかな"},{"$f":"VLOOKUP(C25,基本シート!$A$5:$F$104,6)","v":"ありまやま　ゐなのささはら　かぜふけば　いでそよひとを　わすれやはする"},{"$f":"VLOOKUP(D25,基本シート!$A$5:$F$104,6)","v":"めぐりあひて　みしやそれとも　わかぬまに　くもがくれにし　よはのつきかな"},{"$f":"VLOOKUP(E25,基本シート!$A$5:$F$104,6)","v":"あらざらむ　このよのほかの　おもひでに　いまひとたびの　あふこともがな"}]
[60,59,58,57,{"$f":"A23+1","v":56},{"$f":"VLOOKUP(A25,基本シート!$A$5:$E$104,5)","v":"またふみもみすあまのはしたて"},{"$f":"VLOOKUP(B25,基本シート!$A$5:$E$104,5)","v":"かたふくまてのつきをみしかな"},{"$f":"VLOOKUP(C25,基本シート!$A$5:$E$104,5)","v":"いてそよひとをわすれやはする"},{"$f":"VLOOKUP(D25,基本シート!$A$5:$E$104,5)","v":"くもかくれにしよはのつきかな"},{"$f":"VLOOKUP(E25,基本シート!$A$5:$E$104,5)","v":"いまひとたひのあふこともかな"}]
[null,null,null,null,null,{"$f":"A27","v":65},{"$f":"B27","v":64},{"$f":"C27","v":63},{"$f":"D27","v":62},{"$f":"E27","v":61},{"$f":"VLOOKUP(A27,基本シート!$A$5:$F$104,6)","v":"うらみわび　ほさぬそでだに　あるものを　こひにくちなむ　なこそをしけれ"},{"$f":"VLOOKUP(B27,基本シート!$A$5:$F$104,6)","v":"あさぼらけ　うぢのかはぎり　たえだえに　あらはれわたる　せぜのあじろぎ"},{"$f":"VLOOKUP(C27,基本シート!$A$5:$F$104,6)","v":"いまはただ　おもひたえなむ　とばかりを　ひとづてならで　いふよしもがな"},{"$f":"VLOOKUP(D27,基本シート!$A$5:$F$104,6)","v":"よをこめて　とりのそらねは　はかるとも　よにあふさかの　せきはゆるさじ"},{"$f":"VLOOKUP(E27,基本シート!$A$5:$F$104,6)","v":"いにしへの　ならのみやこの　やへざくら　けふここのへに　にほひぬるかな"}]
[65,64,63,62,{"$f":"A25+1","v":61},{"$f":"VLOOKUP(A27,基本シート!$A$5:$E$104,5)","v":"こひにくちなむなこそをしけれ"},{"$f":"VLOOKUP(B27,基本シート!$A$5:$E$104,5)","v":"あらはれわたるせせのあしろき"},{"$f":"VLOOKUP(C27,基本シート!$A$5:$E$104,5)","v":"ひとつてならていふよしもかな"},{"$f":"VLOOKUP(D27,基本シート!$A$5:$E$104,5)","v":"よにあふさかのせきはゆるさし"},{"$f":"VLOOKUP(E27,基本シート!$A$5:$E$104,5)","v":"けふここのへににほひぬるかな"}]
[null,null,null,null,null,{"$f":"A29","v":70},{"$f":"B29","v":69},{"$f":"C29","v":68},{"$f":"D29","v":67},{"$f":"E29","v":66},{"$f":"VLOOKUP(A29,基本シート!$A$5:$F$104,6)","v":"さびしさに　やどをたちいでて　ながむれば　いづこもおなじ　あきのゆふぐれ"},{"$f":"VLOOKUP(B29,基本シート!$A$5:$F$104,6)","v":"あらしふく　みむろのやまの　もみぢばは　たつたのかはの　にしきなりけり"},{"$f":"VLOOKUP(C29,基本シート!$A$5:$F$104,6)","v":"こころにも　あらでうきよに　ながらへば　こひしかるべき　よはのつきかな"},{"$f":"VLOOKUP(D29,基本シート!$A$5:$F$104,6)","v":"はるのよの　ゆめばかりなる　たまくらに　かひなくたたむ　なこそをしけれ"},{"$f":"VLOOKUP(E29,基本シート!$A$5:$F$104,6)","v":"もろともに　あはれとおもへ　やまざくら　はなよりほかに　しるひともなし"}]
[70,69,68,67,{"$f":"A27+1","v":66},{"$f":"VLOOKUP(A29,基本シート!$A$5:$E$104,5)","v":"いつこもおなしあきのゆふくれ"},{"$f":"VLOOKUP(B29,基本シート!$A$5:$E$104,5)","v":"たつたのかはのにしきなりけり"},{"$f":"VLOOKUP(C29,基本シート!$A$5:$E$104,5)","v":"こひしかるへきよはのつきかな"},{"$f":"VLOOKUP(D29,基本シート!$A$5:$E$104,5)","v":"かひなくたたむなこそをしけれ"},{"$f":"VLOOKUP(E29,基本シート!$A$5:$E$104,5)","v":"はなよりほかにしるひともなし"}]
[null,null,null,null,null,{"$f":"A31","v":75},{"$f":"B31","v":74},{"$f":"C31","v":73},{"$f":"D31","v":72},{"$f":"E31","v":71},{"$f":"VLOOKUP(A31,基本シート!$A$5:$F$104,6)","v":"ちぎりおきし　させもがつゆを　いのちにて　あはれことしの　あきもいぬめり"},{"$f":"VLOOKUP(B31,基本シート!$A$5:$F$104,6)","v":"うかりける　ひとをはつせの　やまおろしよ　はげしかれとは　いのらぬものを"},{"$f":"VLOOKUP(C31,基本シート!$A$5:$F$104,6)","v":"たかさごの　をのへのさくら　さきにけり　とやまのかすみ　たたずもあらなむ"},{"$f":"VLOOKUP(D31,基本シート!$A$5:$F$104,6)","v":"おとにきく　たかしのはまの　あだなみは　かけじやそでの　ぬれもこそすれ"},{"$f":"VLOOKUP(E31,基本シート!$A$5:$F$104,6)","v":"ゆふされば　かどたのいなば　おとづれて　あしのまろやに　あきかぜぞふく"}]
[75,74,73,72,{"$f":"A29+1","v":71},{"$f":"VLOOKUP(A31,基本シート!$A$5:$E$104,5)","v":"あはれことしのあきもいぬめり"},{"$f":"VLOOKUP(B31,基本シート!$A$5:$E$104,5)","v":"はけしかれとはいのらぬものを"},{"$f":"VLOOKUP(C31,基本シート!$A$5:$E$104,5)","v":"とやまのかすみたたすもあらなむ"},{"$f":"VLOOKUP(D31,基本シート!$A$5:$E$104,5)","v":"かけしやそてのぬれもこそすれ"},{"$f":"VLOOKUP(E31,基本シート!$A$5:$E$104,5)","v":"あしのまろやにあきかせそふく"}]
[null,null,null,null,null,{"$f":"A33","v":80},{"$f":"B33","v":79},{"$f":"C33","v":78},{"$f":"D33","v":77},{"$f":"E33","v":76},{"$f":"VLOOKUP(A33,基本シート!$A$5:$F$104,6)","v":"ながからむ　こころもしらず　くろかみの　みだれてけさは　ものをこそおもへ"},{"$f":"VLOOKUP(B33,基本シート!$A$5:$F$104,6)","v":"あきかぜに　たなびくくもの　たえまより　もれいづるつきの　かげのさやけさ"},{"$f":"VLOOKUP(C33,基本シート!$A$5:$F$104,6)","v":"あはぢしま　かよふちどりの　なくこゑに　いくよねざめぬ　すまのせきもり"},{"$f":"VLOOKUP(D33,基本シート!$A$5:$F$104,6)","v":"せをはやみ　いはにせかるる　たきがはの　われてもすゑに　あはむとぞおもふ"},{"$f":"VLOOKUP(E33,基本シート!$A$5:$F$104,6)","v":"わたのはら　こぎいでてみれば　ひさかたの　くもゐにまがふ　おきつしらなみ"}]
[80,79,78,77,{"$f":"A31+1","v":76},{"$f":"VLOOKUP(A33,基本シート!$A$5:$E$104,5)","v":"みたれてけさはものをこそおもへ"},{"$f":"VLOOKUP(B33,基本シート!$A$5:$E$104,5)","v":"もれいつるつきのかけのさやけさ"},{"$f":"VLOOKUP(C33,基本シート!$A$5:$E$104,5)","v":"いくよねさめぬすまのせきもり"},{"$f":"VLOOKUP(D33,基本シート!$A$5:$E$104,5)","v":"われてもすゑにあはむとそおもふ"},{"$f":"VLOOKUP(E33,基本シート!$A$5:$E$104,5)","v":"くもゐにまかふおきつしらなみ"}]
[null,null,null,null,null,{"$f":"A35","v":85},{"$f":"B35","v":84},{"$f":"C35","v":83},{"$f":"D35","v":82},{"$f":"E35","v":81},{"$f":"VLOOKUP(A35,基本シート!$A$5:$F$104,6)","v":"よもすがら　ものおもふころは　あけやらで　ねやのひまさへ　つれなかりけり"},{"$f":"VLOOKUP(B35,基本シート!$A$5:$F$104,6)","v":"ながらへば　またこのごろや　しのばれむ　うしとみしよぞ　いまはこひしき"},{"$f":"VLOOKUP(C35,基本シート!$A$5:$F$104,6)","v":"よのなかよ　みちこそなけれ　おもひいる　やまのおくにも　しかぞなくなる"},{"$f":"VLOOKUP(D35,基本シート!$A$5:$F$104,6)","v":"おもひわび　さてもいのちは　あるものを　うきにたへぬは　なみだなりけり"},{"$f":"VLOOKUP(E35,基本シート!$A$5:$F$104,6)","v":"ほととぎす　なきつるかたを　ながむれば　ただありあけの　つきぞのこれる"}]
[85,84,83,82,{"$f":"A33+1","v":81},{"$f":"VLOOKUP(A35,基本シート!$A$5:$E$104,5)","v":"ねやのひまさへつれなかりけり"},{"$f":"VLOOKUP(B35,基本シート!$A$5:$E$104,5)","v":"うしとみしよそいまはこひしき"},{"$f":"VLOOKUP(C35,基本シート!$A$5:$E$104,5)","v":"やまのおくにもしかそなくなる"},{"$f":"VLOOKUP(D35,基本シート!$A$5:$E$104,5)","v":"うきにたへぬはなみたなりけり"},{"$f":"VLOOKUP(E35,基本シート!$A$5:$E$104,5)","v":"たたありあけのつきそのこれる"}]
[null,null,null,null,null,{"$f":"A37","v":90},{"$f":"B37","v":89},{"$f":"C37","v":88},{"$f":"D37","v":87},{"$f":"E37","v":86},{"$f":"VLOOKUP(A37,基本シート!$A$5:$F$104,6)","v":"みせばやな　をじまのあまの　そでだにも　ぬれにぞぬれし　いろはかはらず"},{"$f":"VLOOKUP(B37,基本シート!$A$5:$F$104,6)","v":"たまのをよ　たえなばたえね　ながらへば　しのぶることの　よわりもぞする"},{"$f":"VLOOKUP(C37,基本シート!$A$5:$F$104,6)","v":"なにはえの　あしのかりねの　ひとよゆゑ　みをつくしてや　こひわたるべき"},{"$f":"VLOOKUP(D37,基本シート!$A$5:$F$104,6)","v":"むらさめの　つゆもまだひぬ　まきのはに　きりたちのぼる　あきのゆふぐれ"},{"$f":"VLOOKUP(E37,基本シート!$A$5:$F$104,6)","v":"なげけとて　つきやはものを　おもはする　かこちがほなる　わがなみだかな"}]
[90,89,88,87,{"$f":"A35+1","v":86},{"$f":"VLOOKUP(A37,基本シート!$A$5:$E$104,5)","v":"ぬれにそぬれしいろはかはらす"},{"$f":"VLOOKUP(B37,基本シート!$A$5:$E$104,5)","v":"しのふることのよわりもそする"},{"$f":"VLOOKUP(C37,基本シート!$A$5:$E$104,5)","v":"みをつくしてやこひわたるへき"},{"$f":"VLOOKUP(D37,基本シート!$A$5:$E$104,5)","v":"きりたちのほるあきのゆふくれ"},{"$f":"VLOOKUP(E37,基本シート!$A$5:$E$104,5)","v":"かこちかほなるわかなみたかな"}]
[null,null,null,null,null,{"$f":"A39","v":95},{"$f":"B39","v":94},{"$f":"C39","v":93},{"$f":"D39","v":92},{"$f":"E39","v":91},{"$f":"VLOOKUP(A39,基本シート!$A$5:$F$104,6)","v":"おほけなく　うきよのたみに　おほふかな　わがたつそまに　すみぞめのそで"},{"$f":"VLOOKUP(B39,基本シート!$A$5:$F$104,6)","v":"みよしのの　やまのあきかぜ　さよふけて　ふるさとさむく　ころもうつなり"},{"$f":"VLOOKUP(C39,基本シート!$A$5:$F$104,6)","v":"よのなかは　つねにもがもな　なぎさこぐ　あまのをぶねの　つなでかなしも"},{"$f":"VLOOKUP(D39,基本シート!$A$5:$F$104,6)","v":"わがそでは　しほひにみえぬ　おきのいしの　ひとこそしらね　かわくまもなし"},{"$f":"VLOOKUP(E39,基本シート!$A$5:$F$104,6)","v":"きりぎりす　なくやしもよの　さむしろに　ころもかたしき　ひとりかもねむ"}]
[95,94,93,92,{"$f":"A37+1","v":91},{"$f":"VLOOKUP(A39,基本シート!$A$5:$E$104,5)","v":"わかたつそまにすみそめのそて"},{"$f":"VLOOKUP(B39,基本シート!$A$5:$E$104,5)","v":"ふるさとさむくころもうつなり"},{"$f":"VLOOKUP(C39,基本シート!$A$5:$E$104,5)","v":"あまのをふねのつなてかなしも"},{"$f":"VLOOKUP(D39,基本シート!$A$5:$E$104,5)","v":"ひとこそしらねかわくまもなし"},{"$f":"VLOOKUP(E39,基本シート!$A$5:$E$104,5)","v":"ころもかたしきひとりかもねむ"}]
[null,null,null,null,null,{"$f":"A41","v":100},{"$f":"B41","v":99},{"$f":"C41","v":98},{"$f":"D41","v":97},{"$f":"E41","v":96},{"$f":"VLOOKUP(A41,基本シート!$A$5:$F$104,6)","v":"ももしきや　ふるきのきばの　しのぶにも　なほあまりある　むかしなりけり"},{"$f":"VLOOKUP(B41,基本シート!$A$5:$F$104,6)","v":"ひともをし　ひともうらめし　あぢきなく　よをおもふゆゑに　ものおもふみは"},{"$f":"VLOOKUP(C41,基本シート!$A$5:$F$104,6)","v":"かぜそよぐ　ならのをがはの　ゆふぐれは　みそぎぞなつの　しるしなりける"},{"$f":"VLOOKUP(D41,基本シート!$A$5:$F$104,6)","v":"こぬひとを　まつほのうらの　ゆふなぎに　やくやもしほの　みもこがれつつ"},{"$f":"VLOOKUP(E41,基本シート!$A$5:$F$104,6)","v":"はなさそふ　あらしのにはの　ゆきならで　ふりゆくものは　わがみなりけり"}]
[100,99,98,97,{"$f":"A39+1","v":96},{"$f":"VLOOKUP(A41,基本シート!$A$5:$E$104,5)","v":"なほあまりあるむかしなりけり"},{"$f":"VLOOKUP(B41,基本シート!$A$5:$E$104,5)","v":"よをおもふゆゑにものおもふみは"},{"$f":"VLOOKUP(C41,基本シート!$A$5:$E$104,5)","v":"みそきそなつのしるしなりける"},{"$f":"VLOOKUP(D41,基本シート!$A$5:$E$104,5)","v":"やくやもしほのみもこかれつつ"},{"$f":"VLOOKUP(E41,基本シート!$A$5:$E$104,5)","v":"ふりゆくものはわかみなりけり"}]

{"sheet":"並べ替えて競技に","index":1,"n_rows":102,"n_cols":6,"rows_kept":102,"cut":false,"hidden":false,"merged":[]}
[]
[null,"上の句","下の句","下の句（古典仮名遣い）","すきまなく詰めた","短歌の形で"]
[30,"ありあけの　つれなくみえし　わかれより　","あかつきばかり　うきものはなし","あかつきはかり　うきものはなし","あかつきはかりうきものはなし","ありあけの　つれなくみえし　わかれより　あかつきばかり　うきものはなし"]
[71,"ゆふされば　かどたのいなば　おとづれて　","あしのまろやに　あきかぜぞふく","あしのまろやに　あきかせそふく","あしのまろやにあきかせそふく","ゆふされば　かどたのいなば　おとづれて　あしのまろやに　あきかぜぞふく"]
[19,"なにはがた　みじかきあしの　ふしのまも　","あはでこのよを　すぐしてよとや","あはてこのよを　すくしてよとや","あはてこのよをすくしてよとや","なにはがた　みじかきあしの　ふしのまも　あはでこのよを　すぐしてよとや"]
[75,"ちぎりおきし　させもがつゆを　いのちにて　","あはれことしの　あきもいぬめり","あはれことしの　あきもいぬめり","あはれことしのあきもいぬめり","ちぎりおきし　させもがつゆを　いのちにて　あはれことしの　あきもいぬめり"]
[93,"よのなかは　つねにもがもな　なぎさこぐ　","あまのをぶねの　つなでかなしも","あまのをふねの　つなてかなしも","あまのをふねのつなてかなしも","よのなかは　つねにもがもな　なぎさこぐ　あまのをぶねの　つなでかなしも"]
[39,"あさぢふの　をののしのはら　しのぶれど　","あまりてなどか　ひとのこひしき","あまりてなとか　ひとのこひしき","あまりてなとかひとのこひしき","あさぢふの　をののしのはら　しのぶれど　あまりてなどか　ひとのこひしき"]
[64,"あさぼらけ　うぢのかはぎり　たえだえに　","あらはれわたる　せぜのあじろぎ","あらはれわたる　せせのあしろき","あらはれわたるせせのあしろき","あさぼらけ　うぢのかはぎり　たえだえに　あらはれわたる　せぜのあじろぎ"]
[21,"いまこむと　いひしばかりに　ながつきの　","ありあけのつきを　まちいでつるかな","ありあけのつきを　まちいてつるかな","ありあけのつきをまちいてつるかな","いまこむと　いひしばかりに　ながつきの　ありあけのつきを　まちいでつるかな"]
[53,"なげきつつ　ひとりぬるよの　あくるまは　","いかにひさしき　ものとかはしる","いかにひさしき　ものとかはしる","いかにひさしきものとかはしる","なげきつつ　ひとりぬるよの　あくるまは　いかにひさしき　ものとかはしる"]
[78,"あはぢしま　かよふちどりの　なくこゑに　","いくよねざめぬ　すまのせきもり","いくよねさめぬ　すまのせきもり","いくよねさめぬすまのせきもり","あはぢしま　かよふちどりの　なくこゑに　いくよねざめぬ　すまのせきもり"]
[70,"さびしさに　やどをたちいでて　ながむれば　","いづこもおなじ　あきのゆふぐれ","いつこもおなし　あきのゆふくれ","いつこもおなしあきのゆふくれ","さびしさに　やどをたちいでて　ながむれば　いづこもおなじ　あきのゆふぐれ"]
[27,"みかのはら　わきてながるる　いづみがは　","いつみきとてか　こひしかるらむ","いつみきとてか　こひしかるらむ","いつみきとてかこひしかるらむ","みかのはら　わきてながるる　いづみがは　いつみきとてか　こひしかるらむ"]
[58,"ありまやま　ゐなのささはら　かぜふけば　","いでそよひとを　わすれやはする","いてそよひとを　わすれやはする","いてそよひとをわすれやはする","ありまやま　ゐなのささはら　かぜふけば　いでそよひとを　わすれやはする"]
[56,"あらざらむ　このよのほかの　おもひでに　","いまひとたびの　あふこともがな","いまひとたひの　あふこともかな","いまひとたひのあふこともかな","あらざらむ　このよのほかの　おもひでに　いまひとたびの　あふこともがな"]
[26,"をぐらやま　みねのもみぢば　こころあらば　","いまひとたびの　みゆきまたなむ","いまひとたひの　みゆきまたなむ","いまひとたひのみゆきまたなむ","をぐらやま　みねのもみぢば　こころあらば　いまひとたびの　みゆきまたなむ"]
[82,"おもひわび　さてもいのちは　あるものを　","うきにたへぬは　なみだなりけり","うきにたへぬは　なみたなりけり","うきにたへぬはなみたなりけり","おもひわび　さてもいのちは　あるものを　うきにたへぬは　なみだなりけり"]
[84,"ながらへば　またこのごろや　しのばれむ　","うしとみしよぞ　いまはこひしき","うしとみしよそ　いまはこひしき","うしとみしよそいまはこひしき","ながらへば　またこのごろや　しのばれむ　うしとみしよぞ　いまはこひしき"]
[29,"こころあてに　をらばやをらむ　はつしもの　","おきまどはせる　しらぎくのはな","おきまとはせる　しらきくのはな","おきまとはせるしらきくのはな","こころあてに　をらばやをらむ　はつしもの　おきまどはせる　しらぎくのはな"]
[72,"おとにきく　たかしのはまの　あだなみは　","かけじやそでの　ぬれもこそすれ","かけしやそての　ぬれもこそすれ","かけしやそてのぬれもこそすれ","おとにきく　たかしのはまの　あだなみは　かけじやそでの　ぬれもこそすれ"]
[86,"なげけとて　つきやはものを　おもはする　","かこちがほなる　わがなみだかな","かこちかほなる　わかなみたかな","かこちかほなるわかなみたかな","なげけとて　つきやはものを　おもはする　かこちがほなる　わがなみだかな"]
[59,"やすらはで　ねなましものを　さよふけて　","かたぶくまでの　つきをみしかな","かたふくまての　つきをみしかな","かたふくまてのつきをみしかな","やすらはで　ねなましものを　さよふけて　かたぶくまでの　つきをみしかな"]
[67,"はるのよの　ゆめばかりなる　たまくらに　","かひなくたたむ　なこそをしけれ","かひなくたたむ　なこそをしけれ","かひなくたたむなこそをしけれ","はるのよの　ゆめばかりなる　たまくらに　かひなくたたむ　なこそをしけれ"]
[17,"ちはやぶる　かみよもきかず　たつたがは　","からくれなゐに　みづくくるとは","からくれなゐに　みつくくるとは","からくれなゐにみつくくるとは","ちはやぶる　かみよもきかず　たつたがは　からくれなゐに　みづくくるとは"]
[87,"むらさめの　つゆもまだひぬ　まきのはに　","きりたちのぼる　あきのゆふぐれ","きりたちのほる　あきのゆふくれ","きりたちのほるあきのゆふくれ","むらさめの　つゆもまだひぬ　まきのはに　きりたちのぼる　あきのゆふぐれ"]
[48,"かぜをいたみ　いはうつなみの　おのれのみ　","くだけてものを　おもふころかな","くたけてものを　おもふころかな","くたけてものをおもふころかな","かぜをいたみ　いはうつなみの　おのれのみ　くだけてものを　おもふころかな"]
[57,"めぐりあひて　みしやそれとも　わかぬまに　","くもがくれにし　よはのつきかな","くもかくれにし　よはのつきかな","くもかくれにしよはのつきかな","めぐりあひて　みしやそれとも　わかぬまに　くもがくれにし　よはのつきかな"]
[36,"なつのよは　まだよひながら　あけぬるを　","くものいづこに　つきやどるらむ","くものいつこに　つきやとるらむ","くものいつこにつきやとるらむ","なつのよは　まだよひながら　あけぬるを　くものいづこに　つきやどるらむ"]
[76,"わたのはら　こぎいでてみれば　ひさかたの　","くもゐにまがふ　おきつしらなみ","くもゐにまかふ　おきつしらなみ","くもゐにまかふおきつしらなみ","わたのはら　こぎいでてみれば　ひさかたの　くもゐにまがふ　おきつしらなみ"]
[61,"いにしへの　ならのみやこの　やへざくら　","けふここのへに　にほひぬるかな","けふここのへに　にほひぬるかな","けふここのへににほひぬるかな","いにしへの　ならのみやこの　やへざくら　けふここのへに　にほひぬるかな"]
[54,"わすれじの　ゆくすゑまでは　かたければ　","けふをかぎりの　いのちともがな","けふをかきりの　いのちともかな","けふをかきりのいのちともかな","わすれじの　ゆくすゑまでは　かたければ　けふをかぎりの　いのちともがな"]
[68,"こころにも　あらでうきよに　ながらへば　","こひしかるべき　よはのつきかな","こひしかるへき　よはのつきかな","こひしかるへきよはのつきかな","こころにも　あらでうきよに　ながらへば　こひしかるべき　よはのつきかな"]
[13,"つくばねの　みねよりおつる　みなのがは　","こひぞつもりて　ふちとなりぬる","こひそつもりて　ふちとなりぬる","こひそつもりてふちとなりぬる","つくばねの　みねよりおつる　みなのがは　こひぞつもりて　ふちとなりぬる"]
[65,"うらみわび　ほさぬそでだに　あるものを　","こひにくちなむ　なこそをしけれ","こひにくちなむ　なこそをしけれ","こひにくちなむなこそをしけれ","うらみわび　ほさぬそでだに　あるものを　こひにくちなむ　なこそをしけれ"]
[91,"きりぎりす　なくやしもよの　さむしろに　","ころもかたしき　ひとりかもねむ","ころもかたしき　ひとりかもねむ","ころもかたしきひとりかもねむ","きりぎりす　なくやしもよの　さむしろに　ころもかたしき　ひとりかもねむ"]
[2,"はるすぎて　なつきにけらし　しろたへの　","ころもほすてふ　あまのかぐやま","ころもほすてふ　あまのかくやま","ころもほすてふあまのかくやま","はるすぎて　なつきにけらし　しろたへの　ころもほすてふ　あまのかぐやま"]
[5,"おくやまに　もみぢふみわけ　なくしかの　","こゑきくときぞ　あきはかなしき","こゑきくときそ　あきはかなしき","こゑきくときそあきはかなしき","おくやまに　もみぢふみわけ　なくしかの　こゑきくときぞ　あきはかなしき"]
[51,"かくとだに　えやはいぶきの　さしもぐさ　","さしもしらじな　もゆるおもひを","さしもしらしな　もゆるおもひを","さしもしらしなもゆるおもひを","かくとだに　えやはいぶきの　さしもぐさ　さしもしらじな　もゆるおもひを"]
[33,"ひさかたの　ひかりのどけき　はるのひに　","しづごころなく　はなのちるらむ","しつこころなく　はなのちるらむ","しつこころなくはなのちるらむ","ひさかたの　ひかりのどけき　はるのひに　しづごころなく　はなのちるらむ"]
[89,"たまのをよ　たえなばたえね　ながらへば　","しのぶることの　よわりもぞする","しのふることの　よわりもそする","しのふることのよわりもそする","たまのをよ　たえなばたえね　ながらへば　しのぶることの　よわりもぞする"]
[10,"これやこの　ゆくもかへるも　わかれては　","しるもしらぬも　あふさかのせき","しるもしらぬも　あふさかのせき","しるもしらぬもあふさかのせき","これやこの　ゆくもかへるも　わかれては　しるもしらぬも　あふさかのせき"]
[6,"かささぎの　わたせるはしに　おくしもの　","しろきをみれば　よぞふけにける","しろきをみれは　よそふけにける","しろきをみれはよそふけにける","かささぎの　わたせるはしに　おくしもの　しろきをみれば　よぞふけにける"]
[42,"ちぎりきな　かたみにそでを　しぼりつつ　","すゑのまつやま　なみこさじとは","すゑのまつやま　なみこさしとは","すゑのまつやまなみこさしとは","ちぎりきな　かたみにそでを　しぼりつつ　すゑのまつやま　なみこさじとは"]
[81,"ほととぎす　なきつるかたを　ながむれば　","ただありあけの　つきぞのこれる","たたありあけの　つきそのこれる","たたありあけのつきそのこれる","ほととぎす　なきつるかたを　ながむれば　ただありあけの　つきぞのこれる"]
[69,"あらしふく　みむろのやまの　もみぢばは　","たつたのかはの　にしきなりけり","たつたのかはの　にしきなりけり","たつたのかはのにしきなりけり","あらしふく　みむろのやまの　もみぢばは　たつたのかはの　にしきなりけり"]
[37,"しらつゆに　かぜのふきしく　あきののは　","つらぬきとめぬ　たまぞちりける","つらぬきとめぬ　たまそちりける","つらぬきとめぬたまそちりける","しらつゆに　かぜのふきしく　あきののは　つらぬきとめぬ　たまぞちりける"]
[73,"たかさごの　をのへのさくら　さきにけり　","とやまのかすみ　たたずもあらなむ","とやまのかすみ　たたすもあらなむ","とやまのかすみたたすもあらなむ","たかさごの　をのへのさくら　さきにけり　とやまのかすみ　たたずもあらなむ"]
[50,"きみがため　をしからざりし　いのちさへ　","ながくもがなと　おもひけるかな","なかくもかなと　おもひけるかな","なかくもかなとおもひけるかな","きみがため　をしからざりし　いのちさへ　ながくもがなと　おもひけるかな"]
[3,"あしびきの　やまどりのをの　しだりをの　","ながながしよを　ひとりかもねむ","なかなかしよを　ひとりかもねむ","なかなかしよをひとりかもねむ","あしびきの　やまどりのをの　しだりをの　ながながしよを　ひとりかもねむ"]
[32,"やまがはに　かぜのかけたる　しがらみは　","ながれもあへぬ　もみぢなりけり","なかれもあへぬ　もみちなりけり","なかれもあへぬもみちなりけり","やまがはに　かぜのかけたる　しがらみは　ながれもあへぬ　もみぢなりけり"]
[55,"たきのおとは　たえてひさしく　なりぬれど　","なこそながれて　なほきこえけれ","なこそなかれて　なほきこえけれ","なこそなかれてなほきこえけれ","たきのおとは　たえてひさしく　なりぬれど　なこそながれて　なほきこえけれ"]
[100,"ももしきや　ふるきのきばの　しのぶにも　","なほあまりある　むかしなりけり","なほあまりある　むかしなりけり","なほあまりあるむかしなりけり","ももしきや　ふるきのきばの　しのぶにも　なほあまりある　むかしなりけり"]
[52,"あけぬれば　くるるものとは　しりながら　","なほうらめしき　あさぼらけかな","なほうらめしき　あさほらけかな","なほうらめしきあさほらけかな","あけぬれば　くるるものとは　しりながら　なほうらめしき　あさぼらけかな"]
[90,"みせばやな　をじまのあまの　そでだにも　","ぬれにぞぬれし　いろはかはらず","ぬれにそぬれし　いろはかはらす","ぬれにそぬれしいろはかはらす","みせばやな　をじまのあまの　そでだにも　ぬれにぞぬれし　いろはかはらず"]
[85,"よもすがら　ものおもふころは　あけやらで　","ねやのひまさへ　つれなかりけり","ねやのひまさへ　つれなかりけり","ねやのひまさへつれなかりけり","よもすがら　ものおもふころは　あけやらで　ねやのひまさへ　つれなかりけり"]
[74,"うかりける　ひとをはつせの　やまおろしよ　","はげしかれとは　いのらぬものを","はけしかれとは　いのらぬものを","はけしかれとはいのらぬものを","うかりける　ひとをはつせの　やまおろしよ　はげしかれとは　いのらぬものを"]
[35,"ひとはいさ　こころもしらず　ふるさとは　","はなぞむかしの　かににほひける","はなそむかしの　かににほひける","はなそむかしのかににほひける","ひとはいさ　こころもしらず　ふるさとは　はなぞむかしの　かににほひける"]
[66,"もろともに　あはれとおもへ　やまざくら　","はなよりほかに　しるひともなし","はなよりほかに　しるひともなし","はなよりほかにしるひともなし","もろともに　あはれとおもへ　やまざくら　はなよりほかに　しるひともなし"]
[92,"わがそでは　しほひにみえぬ　おきのいしの　","ひとこそしらね　かわくまもなし","ひとこそしらね　かわくまもなし","ひとこそしらねかわくまもなし","わがそでは　しほひにみえぬ　おきのいしの　ひとこそしらね　かわくまもなし"]
[47,"やへむぐら　しげれるやどの　さびしきに　","ひとこそみえね　あきはきにけり","ひとこそみえね　あきはきにけり","ひとこそみえねあきはきにけり","やへむぐら　しげれるやどの　さびしきに　ひとこそみえね　あきはきにけり"]
[41,"こひすてふ　わがなはまだき　たちにけり　","ひとしれずこそ　おもひそめしか","ひとしれすこそ　おもひそめしか","ひとしれすこそおもひそめしか","こひすてふ　わがなはまだき　たちにけり　ひとしれずこそ　おもひそめしか"]
[63,"いまはただ　おもひたえなむ　とばかりを　","ひとづてならで　いふよしもがな","ひとつてならて　いふよしもかな","ひとつてならていふよしもかな","いまはただ　おもひたえなむ　とばかりを　ひとづてならで　いふよしもがな"]
[25,"なにしおはば　あふさかやまの　さねかづら　","ひとにしられで　くるよしもがな","ひとにしられて　くるよしもかな","ひとにしられてくるよしもかな","なにしおはば　あふさかやまの　さねかづら　ひとにしられで　くるよしもがな"]
[11,"わたのはら　やそしまかけて　こぎいでぬと　","ひとにはつげよ　あまのつりぶね","ひとにはつけよ　あまのつりふね","ひとにはつけよあまのつりふね","わたのはら　やそしまかけて　こぎいでぬと　ひとにはつげよ　あまのつりぶね"]
[38,"わすらるる　みをばおもはず　ちかひてし　","ひとのいのちの　をしくもあるかな","ひとのいのちの　をしくもあるかな","ひとのいのちのをしくもあるかな","わすらるる　みをばおもはず　ちかひてし　ひとのいのちの　をしくもあるかな"]
[28,"やまざとは　ふゆぞさびしさ　まさりける　","ひとめもくさも　かれぬとおもへば","ひとめもくさも　かれぬとおもへは","ひとめもくさもかれぬとおもへは","やまざとは　ふゆぞさびしさ　まさりける　ひとめもくさも　かれぬとおもへば"]
[44,"あふことの　たえてしなくは　なかなかに　","ひとをもみをも　うらみざらまし","ひとをもみをも　うらみさらまし","ひとをもみをもうらみさらまし","あふことの　たえてしなくは　なかなかに　ひとをもみをも　うらみざらまし"]
[49,"みかきもり　ゑじのたくひの　よるはもえ　","ひるはきえつつ　ものをこそおもへ","ひるはきえつつ　ものをこそおもへ","ひるはきえつつものをこそおもへ","みかきもり　ゑじのたくひの　よるはもえ　ひるはきえつつ　ものをこそおもへ"]
[4,"たごのうらに　うちいでてみれば　しろたへの　","ふじのたかねに　ゆきはふりつつ","ふしのたかねに　ゆきはふりつつ","ふしのたかねにゆきはふりつつ","たごのうらに　うちいでてみれば　しろたへの　ふじのたかねに　ゆきはふりつつ"]
[96,"はなさそふ　あらしのにはの　ゆきならで　","ふりゆくものは　わがみなりけり","ふりゆくものは　わかみなりけり","ふりゆくものはわかみなりけり","はなさそふ　あらしのにはの　ゆきならで　ふりゆくものは　わがみなりけり"]
[94,"みよしのの　やまのあきかぜ　さよふけて　","ふるさとさむく　ころもうつなり","ふるさとさむく　ころもうつなり","ふるさとさむくころもうつなり","みよしのの　やまのあきかぜ　さよふけて　ふるさとさむく　ころもうつなり"]
[60,"おほえやま　いくののみちの　とほければ　","まだふみもみず　あまのはしだて","またふみもみす　あまのはしたて","またふみもみすあまのはしたて","おほえやま　いくののみちの　とほければ　まだふみもみず　あまのはしだて"]
[16,"たちわかれ　いなばのやまの　みねにおふる　","まつとしきかば　いまかへりこむ","まつとしきかは　いまかへりこむ","まつとしきかはいまかへりこむ","たちわかれ　いなばのやまの　みねにおふる　まつとしきかば　いまかへりこむ"]
[34,"たれをかも　しるひとにせむ　たかさごの　","まつもむかしの　ともならなくに","まつもむかしの　ともならなくに","まつもむかしのともならなくに","たれをかも　しるひとにせむ　たかさごの　まつもむかしの　ともならなくに"]
[7,"あまのはら　ふりさけみれば　かすがなる　","みかさのやまに　いでしつきかも","みかさのやまに　いてしつきかも","みかさのやまにいてしつきかも","あまのはら　ふりさけみれば　かすがなる　みかさのやまに　いでしつきかも"]
[98,"かぜそよぐ　ならのをがはの　ゆふぐれは　","みそぎぞなつの　しるしなりける","みそきそなつの　しるしなりける","みそきそなつのしるしなりける","かぜそよぐ　ならのをがはの　ゆふぐれは　みそぎぞなつの　しるしなりける"]
[14,"みちのくの　しのぶもぢずり　たれゆゑに　","みだれそめにし　われならなくに","みたれそめにし　われならなくに","みたれそめにしわれならなくに","みちのくの　しのぶもぢずり　たれゆゑに　みだれそめにし　われならなくに"]
[80,"ながからむ　こころもしらず　くろかみの　","みだれてけさは　ものをこそおもへ","みたれてけさは　ものをこそおもへ","みたれてけさはものをこそおもへ","ながからむ　こころもしらず　くろかみの　みだれてけさは　ものをこそおもへ"]
[45,"あはれとも　いふべき人は　思ほえで　","みのいたづらに　なりぬべきかな","みのいたつらに　なりぬへきかな","みのいたつらになりぬへきかな","あはれとも　いふべき人は　思ほえで　みのいたづらに　なりぬべきかな"]
[20,"わびぬれば　いまはたおなじ　なにはなる　","みをつくしても　あはむとぞおもふ","みをつくしても　あはむとそおもふ","みをつくしてもあはむとそおもふ","わびぬれば　いまはたおなじ　なにはなる　みをつくしても　あはむとぞおもふ"]
[88,"なにはえの　あしのかりねの　ひとよゆゑ　","みをつくしてや　こひわたるべき","みをつくしてや　こひわたるへき","みをつくしてやこひわたるへき","なにはえの　あしのかりねの　ひとよゆゑ　みをつくしてや　こひわたるべき"]
[43,"あひみての　のちのこころに　くらぶれば　","むかしはものを　おもはざりけり","むかしはものを　おもはさりけり","むかしはものをおもはさりけり","あひみての　のちのこころに　くらぶれば　むかしはものを　おもはざりけり"]
[22,"ふくからに　あきのくさきの　しをるれば　","むべやまかぜを　あらしといふらむ","むへやまかせを　あらしといふらむ","むへやまかせをあらしといふらむ","ふくからに　あきのくさきの　しをるれば　むべやまかぜを　あらしといふらむ"]
[40,"しのぶれど　いろにいでにけり　わがこひは　","ものやおもふと　ひとのとふまで","ものやおもふと　ひとのとふまて","ものやおもふとひとのとふまて","しのぶれど　いろにいでにけり　わがこひは　ものやおもふと　ひとのとふまで"]
[24,"このたびは　ぬさもとりあへず　たむけやま　","もみぢのにしき　かみのまにまに","もみちのにしき　かみのまにまに","もみちのにしきかみのまにまに","このたびは　ぬさもとりあへず　たむけやま　もみぢのにしき　かみのまにまに"]
[79,"あきかぜに　たなびくくもの　たえまより　","もれいづるつきの　かげのさやけさ","もれいつるつきの　かけのさやけさ","もれいつるつきのかけのさやけさ","あきかぜに　たなびくくもの　たえまより　もれいづるつきの　かげのさやけさ"]
[97,"こぬひとを　まつほのうらの　ゆふなぎに　","やくやもしほの　みもこがれつつ","やくやもしほの　みもこかれつつ","やくやもしほのみもこかれつつ","こぬひとを　まつほのうらの　ゆふなぎに　やくやもしほの　みもこがれつつ"]
[83,"よのなかよ　みちこそなけれ　おもひいる　","やまのおくにも　しかぞなくなる","やまのおくにも　しかそなくなる","やまのおくにもしかそなくなる","よのなかよ　みちこそなけれ　おもひいる　やまのおくにも　しかぞなくなる"]
[46,"ゆらのとを　わたるふなびと　かぢをたえ　","ゆくへもしらぬ　こひのみちかな","ゆくへもしらぬ　こひのみちかな","ゆくへもしらぬこひのみちかな","ゆらのとを　わたるふなびと　かぢをたえ　ゆくへもしらぬ　こひのみちかな"]
[18,"すみのえの　きしによるなみ　よるさへや　","ゆめのかよひぢ　ひとめよくらむ","ゆめのかよひち　ひとめよくらむ","ゆめのかよひちひとめよくらむ","すみのえの　きしによるなみ　よるさへや　ゆめのかよひぢ　ひとめよくらむ"]
[31,"あさぼらけ　ありあけのつきと　みるまでに　","よしののさとに　ふれるしらゆき","よしののさとに　ふれるしらゆき","よしののさとにふれるしらゆき","あさぼらけ　ありあけのつきと　みるまでに　よしののさとに　ふれるしらゆき"]
[62,"よをこめて　とりのそらねは　はかるとも　","よにあふさかの　せきはゆるさじ","よにあふさかの　せきはゆるさし","よにあふさかのせきはゆるさし","よをこめて　とりのそらねは　はかるとも　よにあふさかの　せきはゆるさじ"]
[8,"わがいほは　みやこのたつみ　しかぞすむ　","よをうぢやまと　ひとはいふなり","よをうちやまと　ひとはいふなり","よをうちやまとひとはいふなり","わがいほは　みやこのたつみ　しかぞすむ　よをうぢやまと　ひとはいふなり"]
[99,"ひともをし　ひともうらめし　あぢきなく　","よをおもふゆゑに　ものおもふみは","よをおもふゆゑに　ものおもふみは","よをおもふゆゑにものおもふみは","ひともをし　ひともうらめし　あぢきなく　よをおもふゆゑに　ものおもふみは"]
[15,"きみがため　はるののにいでて　わかなつむ　","わがころもでに　ゆきはふりつつ","わかころもてに　ゆきはふりつつ","わかころもてにゆきはふりつつ","きみがため　はるののにいでて　わかなつむ　わがころもでに　ゆきはふりつつ"]
[1,"あきのたの　かりほのいほの　とまをあらみ　","わがころもでは　つゆにぬれつつ","わかころもては　つゆにぬれつつ","わかころもてはつゆにぬれつつ","あきのたの　かりほのいほの　とまをあらみ　わがころもでは　つゆにぬれつつ"]
[95,"おほけなく　うきよのたみに　おほふかな　","わがたつそまに　すみぞめのそで","わかたつそまに　すみそめのそて","わかたつそまにすみそめのそて","おほけなく　うきよのたみに　おほふかな　わがたつそまに　すみぞめのそで"]
[23,"つきみれば　ちぢにものこそ　かなしけれ　","わがみひとつの　あきにはあらねど","わかみひとつの　あきにはあらねと","わかみひとつのあきにはあらねと","つきみれば　ちぢにものこそ　かなしけれ　わがみひとつの　あきにはあらねど"]
[9,"はなのいろは　うつりにけりな　いたづらに　","わがみよにふる　ながめせしまに","わかみよにふる　なかめせしまに","わかみよにふるなかめせしまに","はなのいろは　うつりにけりな　いたづらに　わがみよにふる　ながめせしまに"]
[77,"せをはやみ　いはにせかるる　たきがはの　","われてもすゑに　あはむとぞおもふ","われてもすゑに　あはむとそおもふ","われてもすゑにあはむとそおもふ","せをはやみ　いはにせかるる　たきがはの　われてもすゑに　あはむとぞおもふ"]
[12,"あまつかぜ　くものかよひぢ　ふきとぢよ　","をとめのすがた　しばしとどめむ","をとめのすかた　しはしととめむ","をとめのすかたしはしととめむ","あまつかぜ　くものかよひぢ　ふきとぢよ　をとめのすがた　しばしとどめむ"]

{"sheet":"基本シート","index":2,"n_rows":104,"n_cols":6,"rows_kept":104,"cut":false,"hidden":false,"merged":[]}
[]
[]
[null,"上の句","下の句","下の句（古典仮名遣い）","すきまなく詰めた"]
[]
[1,"あきのたの　かりほのいほの　とまをあらみ　","わがころもでは　つゆにぬれつつ","わかころもては　つゆにぬれつつ","わかころもてはつゆにぬれつつ",{"$f":"B5&\nC5","v":"あきのたの　かりほのいほの　とまをあらみ　わがころもでは　つゆにぬれつつ"}]
[2,"はるすぎて　なつきにけらし　しろたへの　","ころもほすてふ　あまのかぐやま","ころもほすてふ　あまのかくやま","ころもほすてふあまのかくやま",{"$f":"B6&C6","v":"はるすぎて　なつきにけらし　しろたへの　ころもほすてふ　あまのかぐやま"}]
[3,"あしびきの　やまどりのをの　しだりをの　","ながながしよを　ひとりかもねむ","なかなかしよを　ひとりかもねむ","なかなかしよをひとりかもねむ","あしびきの　やまどりのをの　しだりをの　ながながしよを　ひとりかもねむ"]
[4,"たごのうらに　うちいでてみれば　しろたへの　","ふじのたかねに　ゆきはふりつつ","ふしのたかねに　ゆきはふりつつ","ふしのたかねにゆきはふりつつ","たごのうらに　うちいでてみれば　しろたへの　ふじのたかねに　ゆきはふりつつ"]
[5,"おくやまに　もみぢふみわけ　なくしかの　","こゑきくときぞ　あきはかなしき","こゑきくときそ　あきはかなしき","こゑきくときそあきはかなしき","おくやまに　もみぢふみわけ　なくしかの　こゑきくときぞ　あきはかなしき"]
[6,"かささぎの　わたせるはしに　おくしもの　","しろきをみれば　よぞふけにける","しろきをみれは　よそふけにける","しろきをみれはよそふけにける","かささぎの　わたせるはしに　おくしもの　しろきをみれば　よぞふけにける"]
[7,"あまのはら　ふりさけみれば　かすがなる　","みかさのやまに　いでしつきかも","みかさのやまに　いてしつきかも","みかさのやまにいてしつきかも","あまのはら　ふりさけみれば　かすがなる　みかさのやまに　いでしつきかも"]
[8,"わがいほは　みやこのたつみ　しかぞすむ　","よをうぢやまと　ひとはいふなり","よをうちやまと　ひとはいふなり","よをうちやまとひとはいふなり","わがいほは　みやこのたつみ　しかぞすむ　よをうぢやまと　ひとはいふなり"]
[9,"はなのいろは　うつりにけりな　いたづらに　","わがみよにふる　ながめせしまに","わかみよにふる　なかめせしまに","わかみよにふるなかめせしまに","はなのいろは　うつりにけりな　いたづらに　わがみよにふる　ながめせしまに"]
[10,"これやこの　ゆくもかへるも　わかれては　","しるもしらぬも　あふさかのせき","しるもしらぬも　あふさかのせき","しるもしらぬもあふさかのせき","これやこの　ゆくもかへるも　わかれては　しるもしらぬも　あふさかのせき"]
[11,"わたのはら　やそしまかけて　こぎいでぬと　","ひとにはつげよ　あまのつりぶね","ひとにはつけよ　あまのつりふね","ひとにはつけよあまのつりふね","わたのはら　やそしまかけて　こぎいでぬと　ひとにはつげよ　あまのつりぶね"]
[12,"あまつかぜ　くものかよひぢ　ふきとぢよ　","をとめのすがた　しばしとどめむ","をとめのすかた　しはしととめむ","をとめのすかたしはしととめむ","あまつかぜ　くものかよひぢ　ふきとぢよ　をとめのすがた　しばしとどめむ"]
[13,"つくばねの　みねよりおつる　みなのがは　","こひぞつもりて　ふちとなりぬる","こひそつもりて　ふちとなりぬる","こひそつもりてふちとなりぬる","つくばねの　みねよりおつる　みなのがは　こひぞつもりて　ふちとなりぬる"]
[14,"みちのくの　しのぶもぢずり　たれゆゑに　","みだれそめにし　われならなくに","みたれそめにし　われならなくに","みたれそめにしわれならなくに","みちのくの　しのぶもぢずり　たれゆゑに　みだれそめにし　われならなくに"]
[15,"きみがため　はるののにいでて　わかなつむ　","わがころもでに　ゆきはふりつつ","わかころもてに　ゆきはふりつつ","わかころもてにゆきはふりつつ","きみがため　はるののにいでて　わかなつむ　わがころもでに　ゆきはふりつつ"]
[16,"たちわかれ　いなばのやまの　みねにおふる　","まつとしきかば　いまかへりこむ","まつとしきかは　いまかへりこむ","まつとしきかはいまかへりこむ","たちわかれ　いなばのやまの　みねにおふる　まつとしきかば　いまかへりこむ"]
[17,"ちはやぶる　かみよもきかず　たつたがは　","からくれなゐに　みづくくるとは","からくれなゐに　みつくくるとは","からくれなゐにみつくくるとは","ちはやぶる　かみよもきかず　たつたがは　からくれなゐに　みづくくるとは"]
[18,"すみのえの　きしによるなみ　よるさへや　","ゆめのかよひぢ　ひとめよくらむ","ゆめのかよひち　ひとめよくらむ","ゆめのかよひちひとめよくらむ","すみのえの　きしによるなみ　よるさへや　ゆめのかよひぢ　ひとめよくらむ"]
[19,"なにはがた　みじかきあしの　ふしのまも　","あはでこのよを　すぐしてよとや","あはてこのよを　すくしてよとや","あはてこのよをすくしてよとや","なにはがた　みじかきあしの　ふしのまも　あはでこのよを　すぐしてよとや"]
[20,"わびぬれば　いまはたおなじ　なにはなる　","みをつくしても　あはむとぞおもふ","みをつくしても　あはむとそおもふ","みをつくしてもあはむとそおもふ","わびぬれば　いまはたおなじ　なにはなる　みをつくしても　あはむとぞおもふ"]
[21,"いまこむと　いひしばかりに　ながつきの　","ありあけのつきを　まちいでつるかな","ありあけのつきを　まちいてつるかな","ありあけのつきをまちいてつるかな","いまこむと　いひしばかりに　ながつきの　ありあけのつきを　まちいでつるかな"]
[22,"ふくからに　あきのくさきの　しをるれば　","むべやまかぜを　あらしといふらむ","むへやまかせを　あらしといふらむ","むへやまかせをあらしといふらむ","ふくからに　あきのくさきの　しをるれば　むべやまかぜを　あらしといふらむ"]
[23,"つきみれば　ちぢにものこそ　かなしけれ　","わがみひとつの　あきにはあらねど","わかみひとつの　あきにはあらねと","わかみひとつのあきにはあらねと","つきみれば　ちぢにものこそ　かなしけれ　わがみひとつの　あきにはあらねど"]
[24,"このたびは　ぬさもとりあへず　たむけやま　","もみぢのにしき　かみのまにまに","もみちのにしき　かみのまにまに","もみちのにしきかみのまにまに","このたびは　ぬさもとりあへず　たむけやま　もみぢのにしき　かみのまにまに"]
[25,"なにしおはば　あふさかやまの　さねかづら　","ひとにしられで　くるよしもがな","ひとにしられて　くるよしもかな","ひとにしられてくるよしもかな","なにしおはば　あふさかやまの　さねかづら　ひとにしられで　くるよしもがな"]
[26,"をぐらやま　みねのもみぢば　こころあらば　","いまひとたびの　みゆきまたなむ","いまひとたひの　みゆきまたなむ","いまひとたひのみゆきまたなむ","をぐらやま　みねのもみぢば　こころあらば　いまひとたびの　みゆきまたなむ"]
[27,"みかのはら　わきてながるる　いづみがは　","いつみきとてか　こひしかるらむ","いつみきとてか　こひしかるらむ","いつみきとてかこひしかるらむ","みかのはら　わきてながるる　いづみがは　いつみきとてか　こひしかるらむ"]
[28,"やまざとは　ふゆぞさびしさ　まさりける　","ひとめもくさも　かれぬとおもへば","ひとめもくさも　かれぬとおもへは","ひとめもくさもかれぬとおもへは","やまざとは　ふゆぞさびしさ　まさりける　ひとめもくさも　かれぬとおもへば"]
[29,"こころあてに　をらばやをらむ　はつしもの　","おきまどはせる　しらぎくのはな","おきまとはせる　しらきくのはな","おきまとはせるしらきくのはな","こころあてに　をらばやをらむ　はつしもの　おきまどはせる　しらぎくのはな"]
[30,"ありあけの　つれなくみえし　わかれより　","あかつきばかり　うきものはなし","あかつきはかり　うきものはなし","あかつきはかりうきものはなし","ありあけの　つれなくみえし　わかれより　あかつきばかり　うきものはなし"]
[31,"あさぼらけ　ありあけのつきと　みるまでに　","よしののさとに　ふれるしらゆき","よしののさとに　ふれるしらゆき","よしののさとにふれるしらゆき","あさぼらけ　ありあけのつきと　みるまでに　よしののさとに　ふれるしらゆき"]
[32,"やまがはに　かぜのかけたる　しがらみは　","ながれもあへぬ　もみぢなりけり","なかれもあへぬ　もみちなりけり","なかれもあへぬもみちなりけり","やまがはに　かぜのかけたる　しがらみは　ながれもあへぬ　もみぢなりけり"]
[33,"ひさかたの　ひかりのどけき　はるのひに　","しづごころなく　はなのちるらむ","しつこころなく　はなのちるらむ","しつこころなくはなのちるらむ","ひさかたの　ひかりのどけき　はるのひに　しづごころなく　はなのちるらむ"]
[34,"たれをかも　しるひとにせむ　たかさごの　","まつもむかしの　ともならなくに","まつもむかしの　ともならなくに","まつもむかしのともならなくに","たれをかも　しるひとにせむ　たかさごの　まつもむかしの　ともならなくに"]
[35,"ひとはいさ　こころもしらず　ふるさとは　","はなぞむかしの　かににほひける","はなそむかしの　かににほひける","はなそむかしのかににほひける","ひとはいさ　こころもしらず　ふるさとは　はなぞむかしの　かににほひける"]
[36,"なつのよは　まだよひながら　あけぬるを　","くものいづこに　つきやどるらむ","くものいつこに　つきやとるらむ","くものいつこにつきやとるらむ","なつのよは　まだよひながら　あけぬるを　くものいづこに　つきやどるらむ"]
[37,"しらつゆに　かぜのふきしく　あきののは　","つらぬきとめぬ　たまぞちりける","つらぬきとめぬ　たまそちりける","つらぬきとめぬたまそちりける","しらつゆに　かぜのふきしく　あきののは　つらぬきとめぬ　たまぞちりける"]
[38,"わすらるる　みをばおもはず　ちかひてし　","ひとのいのちの　をしくもあるかな","ひとのいのちの　をしくもあるかな","ひとのいのちのをしくもあるかな","わすらるる　みをばおもはず　ちかひてし　ひとのいのちの　をしくもあるかな"]
[39,"あさぢふの　をののしのはら　しのぶれど　","あまりてなどか　ひとのこひしき","あまりてなとか　ひとのこひしき","あまりてなとかひとのこひしき","あさぢふの　をののしのはら　しのぶれど　あまりてなどか　ひとのこひしき"]
[40,"しのぶれど　いろにいでにけり　わがこひは　","ものやおもふと　ひとのとふまで","ものやおもふと　ひとのとふまて","ものやおもふとひとのとふまて","しのぶれど　いろにいでにけり　わがこひは　ものやおもふと　ひとのとふまで"]
[41,"こひすてふ　わがなはまだき　たちにけり　","ひとしれずこそ　おもひそめしか","ひとしれすこそ　おもひそめしか","ひとしれすこそおもひそめしか","こひすてふ　わがなはまだき　たちにけり　ひとしれずこそ　おもひそめしか"]
[42,"ちぎりきな　かたみにそでを　しぼりつつ　","すゑのまつやま　なみこさじとは","すゑのまつやま　なみこさしとは","すゑのまつやまなみこさしとは","ちぎりきな　かたみにそでを　しぼりつつ　すゑのまつやま　なみこさじとは"]
[43,"あひみての　のちのこころに　くらぶれば　","むかしはものを　おもはざりけり","むかしはものを　おもはさりけり","むかしはものをおもはさりけり","あひみての　のちのこころに　くらぶれば　むかしはものを　おもはざりけり"]
[44,"あふことの　たえてしなくは　なかなかに　","ひとをもみをも　うらみざらまし","ひとをもみをも　うらみさらまし","ひとをもみをもうらみさらまし","あふことの　たえてしなくは　なかなかに　ひとをもみをも　うらみざらまし"]
[45,"あはれとも　いふべき人は　思ほえで　","みのいたづらに　なりぬべきかな","みのいたつらに　なりぬへきかな","みのいたつらになりぬへきかな","あはれとも　いふべき人は　思ほえで　みのいたづらに　なりぬべきかな"]
[46,"ゆらのとを　わたるふなびと　かぢをたえ　","ゆくへもしらぬ　こひのみちかな","ゆくへもしらぬ　こひのみちかな","ゆくへもしらぬこひのみちかな","ゆらのとを　わたるふなびと　かぢをたえ　ゆくへもしらぬ　こひのみちかな"]
[47,"やへむぐら　しげれるやどの　さびしきに　","ひとこそみえね　あきはきにけり","ひとこそみえね　あきはきにけり","ひとこそみえねあきはきにけり","やへむぐら　しげれるやどの　さびしきに　ひとこそみえね　あきはきにけり"]
[48,"かぜをいたみ　いはうつなみの　おのれのみ　","くだけてものを　おもふころかな","くたけてものを　おもふころかな","くたけてものをおもふころかな","かぜをいたみ　いはうつなみの　おのれのみ　くだけてものを　おもふころかな"]
[49,"みかきもり　ゑじのたくひの　よるはもえ　","ひるはきえつつ　ものをこそおもへ","ひるはきえつつ　ものをこそおもへ","ひるはきえつつものをこそおもへ","みかきもり　ゑじのたくひの　よるはもえ　ひるはきえつつ　ものをこそおもへ"]
[50,"きみがため　をしからざりし　いのちさへ　","ながくもがなと　おもひけるかな","なかくもかなと　おもひけるかな","なかくもかなとおもひけるかな","きみがため　をしからざりし　いのちさへ　ながくもがなと　おもひけるかな"]
[51,"かくとだに　えやはいぶきの　さしもぐさ　","さしもしらじな　もゆるおもひを","さしもしらしな　もゆるおもひを","さしもしらしなもゆるおもひを","かくとだに　えやはいぶきの　さしもぐさ　さしもしらじな　もゆるおもひを"]
[52,"あけぬれば　くるるものとは　しりながら　","なほうらめしき　あさぼらけかな","なほうらめしき　あさほらけかな","なほうらめしきあさほらけかな","あけぬれば　くるるものとは　しりながら　なほうらめしき　あさぼらけかな"]
[53,"なげきつつ　ひとりぬるよの　あくるまは　","いかにひさしき　ものとかはしる","いかにひさしき　ものとかはしる","いかにひさしきものとかはしる","なげきつつ　ひとりぬるよの　あくるまは　いかにひさしき　ものとかはしる"]
[54,"わすれじの　ゆくすゑまでは　かたければ　","けふをかぎりの　いのちともがな","けふをかきりの　いのちともかな","けふをかきりのいのちともかな","わすれじの　ゆくすゑまでは　かたければ　けふをかぎりの　いのちともがな"]
[55,"たきのおとは　たえてひさしく　なりぬれど　","なこそながれて　なほきこえけれ","なこそなかれて　なほきこえけれ","なこそなかれてなほきこえけれ","たきのおとは　たえてひさしく　なりぬれど　なこそながれて　なほきこえけれ"]
[56,"あらざらむ　このよのほかの　おもひでに　","いまひとたびの　あふこともがな","いまひとたひの　あふこともかな","いまひとたひのあふこともかな","あらざらむ　このよのほかの　おもひでに　いまひとたびの　あふこともがな"]
[57,"めぐりあひて　みしやそれとも　わかぬまに　","くもがくれにし　よはのつきかな","くもかくれにし　よはのつきかな","くもかくれにしよはのつきかな","めぐりあひて　みしやそれとも　わかぬまに　くもがくれにし　よはのつきかな"]
[58,"ありまやま　ゐなのささはら　かぜふけば　","いでそよひとを　わすれやはする","いてそよひとを　わすれやはする","いてそよひとをわすれやはする","ありまやま　ゐなのささはら　かぜふけば　いでそよひとを　わすれやはする"]
[59,"やすらはで　ねなましものを　さよふけて　","かたぶくまでの　つきをみしかな","かたふくまての　つきをみしかな","かたふくまてのつきをみしかな","やすらはで　ねなましものを　さよふけて　かたぶくまでの　つきをみしかな"]
[60,"おほえやま　いくののみちの　とほければ　","まだふみもみず　あまのはしだて","またふみもみす　あまのはしたて","またふみもみすあまのはしたて","おほえやま　いくののみちの　とほければ　まだふみもみず　あまのはしだて"]
[61,"いにしへの　ならのみやこの　やへざくら　","けふここのへに　にほひぬるかな","けふここのへに　にほひぬるかな","けふここのへににほひぬるかな","いにしへの　ならのみやこの　やへざくら　けふここのへに　にほひぬるかな"]
[62,"よをこめて　とりのそらねは　はかるとも　","よにあふさかの　せきはゆるさじ","よにあふさかの　せきはゆるさし","よにあふさかのせきはゆるさし","よをこめて　とりのそらねは　はかるとも　よにあふさかの　せきはゆるさじ"]
[63,"いまはただ　おもひたえなむ　とばかりを　","ひとづてならで　いふよしもがな","ひとつてならて　いふよしもかな","ひとつてならていふよしもかな","いまはただ　おもひたえなむ　とばかりを　ひとづてならで　いふよしもがな"]
[64,"あさぼらけ　うぢのかはぎり　たえだえに　","あらはれわたる　せぜのあじろぎ","あらはれわたる　せせのあしろき","あらはれわたるせせのあしろき","あさぼらけ　うぢのかはぎり　たえだえに　あらはれわたる　せぜのあじろぎ"]
[65,"うらみわび　ほさぬそでだに　あるものを　","こひにくちなむ　なこそをしけれ","こひにくちなむ　なこそをしけれ","こひにくちなむなこそをしけれ","うらみわび　ほさぬそでだに　あるものを　こひにくちなむ　なこそをしけれ"]
[66,"もろともに　あはれとおもへ　やまざくら　","はなよりほかに　しるひともなし","はなよりほかに　しるひともなし","はなよりほかにしるひともなし",{"$f":"B70&C70","v":"もろともに　あはれとおもへ　やまざくら　はなよりほかに　しるひともなし"}]
[67,"はるのよの　ゆめばかりなる　たまくらに　","かひなくたたむ　なこそをしけれ","かひなくたたむ　なこそをしけれ","かひなくたたむなこそをしけれ","はるのよの　ゆめばかりなる　たまくらに　かひなくたたむ　なこそをしけれ"]
[68,"こころにも　あらでうきよに　ながらへば　","こひしかるべき　よはのつきかな","こひしかるへき　よはのつきかな","こひしかるへきよはのつきかな","こころにも　あらでうきよに　ながらへば　こひしかるべき　よはのつきかな"]
[69,"あらしふく　みむろのやまの　もみぢばは　","たつたのかはの　にしきなりけり","たつたのかはの　にしきなりけり","たつたのかはのにしきなりけり","あらしふく　みむろのやまの　もみぢばは　たつたのかはの　にしきなりけり"]
[70,"さびしさに　やどをたちいでて　ながむれば　","いづこもおなじ　あきのゆふぐれ","いつこもおなし　あきのゆふくれ","いつこもおなしあきのゆふくれ","さびしさに　やどをたちいでて　ながむれば　いづこもおなじ　あきのゆふぐれ"]
[71,"ゆふされば　かどたのいなば　おとづれて　","あしのまろやに　あきかぜぞふく","あしのまろやに　あきかせそふく","あしのまろやにあきかせそふく","ゆふされば　かどたのいなば　おとづれて　あしのまろやに　あきかぜぞふく"]
[72,"おとにきく　たかしのはまの　あだなみは　","かけじやそでの　ぬれもこそすれ","かけしやそての　ぬれもこそすれ","かけしやそてのぬれもこそすれ","おとにきく　たかしのはまの　あだなみは　かけじやそでの　ぬれもこそすれ"]
[73,"たかさごの　をのへのさくら　さきにけり　","とやまのかすみ　たたずもあらなむ","とやまのかすみ　たたすもあらなむ","とやまのかすみたたすもあらなむ","たかさごの　をのへのさくら　さきにけり　とやまのかすみ　たたずもあらなむ"]
[74,"うかりける　ひとをはつせの　やまおろしよ　","はげしかれとは　いのらぬものを","はけしかれとは　いのらぬものを","はけしかれとはいのらぬものを","うかりける　ひとをはつせの　やまおろしよ　はげしかれとは　いのらぬものを"]
[75,"ちぎりおきし　させもがつゆを　いのちにて　","あはれことしの　あきもいぬめり","あはれことしの　あきもいぬめり","あはれことしのあきもいぬめり","ちぎりおきし　させもがつゆを　いのちにて　あはれことしの　あきもいぬめり"]
[76,"わたのはら　こぎいでてみれば　ひさかたの　","くもゐにまがふ　おきつしらなみ","くもゐにまかふ　おきつしらなみ","くもゐにまかふおきつしらなみ","わたのはら　こぎいでてみれば　ひさかたの　くもゐにまがふ　おきつしらなみ"]
[77,"せをはやみ　いはにせかるる　たきがはの　","われてもすゑに　あはむとぞおもふ","われてもすゑに　あはむとそおもふ","われてもすゑにあはむとそおもふ","せをはやみ　いはにせかるる　たきがはの　われてもすゑに　あはむとぞおもふ"]
[78,"あはぢしま　かよふちどりの　なくこゑに　","いくよねざめぬ　すまのせきもり","いくよねさめぬ　すまのせきもり","いくよねさめぬすまのせきもり","あはぢしま　かよふちどりの　なくこゑに　いくよねざめぬ　すまのせきもり"]
[79,"あきかぜに　たなびくくもの　たえまより　","もれいづるつきの　かげのさやけさ","もれいつるつきの　かけのさやけさ","もれいつるつきのかけのさやけさ","あきかぜに　たなびくくもの　たえまより　もれいづるつきの　かげのさやけさ"]
[80,"ながからむ　こころもしらず　くろかみの　","みだれてけさは　ものをこそおもへ","みたれてけさは　ものをこそおもへ","みたれてけさはものをこそおもへ","ながからむ　こころもしらず　くろかみの　みだれてけさは　ものをこそおもへ"]
[81,"ほととぎす　なきつるかたを　ながむれば　","ただありあけの　つきぞのこれる","たたありあけの　つきそのこれる","たたありあけのつきそのこれる","ほととぎす　なきつるかたを　ながむれば　ただありあけの　つきぞのこれる"]
[82,"おもひわび　さてもいのちは　あるものを　","うきにたへぬは　なみだなりけり","うきにたへぬは　なみたなりけり","うきにたへぬはなみたなりけり","おもひわび　さてもいのちは　あるものを　うきにたへぬは　なみだなりけり"]
[83,"よのなかよ　みちこそなけれ　おもひいる　","やまのおくにも　しかぞなくなる","やまのおくにも　しかそなくなる","やまのおくにもしかそなくなる","よのなかよ　みちこそなけれ　おもひいる　やまのおくにも　しかぞなくなる"]
[84,"ながらへば　またこのごろや　しのばれむ　","うしとみしよぞ　いまはこひしき","うしとみしよそ　いまはこひしき","うしとみしよそいまはこひしき","ながらへば　またこのごろや　しのばれむ　うしとみしよぞ　いまはこひしき"]
[85,"よもすがら　ものおもふころは　あけやらで　","ねやのひまさへ　つれなかりけり","ねやのひまさへ　つれなかりけり","ねやのひまさへつれなかりけり","よもすがら　ものおもふころは　あけやらで　ねやのひまさへ　つれなかりけり"]
[86,"なげけとて　つきやはものを　おもはする　","かこちがほなる　わがなみだかな","かこちかほなる　わかなみたかな","かこちかほなるわかなみたかな","なげけとて　つきやはものを　おもはする　かこちがほなる　わがなみだかな"]
[87,"むらさめの　つゆもまだひぬ　まきのはに　","きりたちのぼる　あきのゆふぐれ","きりたちのほる　あきのゆふくれ","きりたちのほるあきのゆふくれ","むらさめの　つゆもまだひぬ　まきのはに　きりたちのぼる　あきのゆふぐれ"]
[88,"なにはえの　あしのかりねの　ひとよゆゑ　","みをつくしてや　こひわたるべき","みをつくしてや　こひわたるへき","みをつくしてやこひわたるへき","なにはえの　あしのかりねの　ひとよゆゑ　みをつくしてや　こひわたるべき"]
[89,"たまのをよ　たえなばたえね　ながらへば　","しのぶることの　よわりもぞする","しのふることの　よわりもそする","しのふることのよわりもそする","たまのをよ　たえなばたえね　ながらへば　しのぶることの　よわりもぞする"]
[90,"みせばやな　をじまのあまの　そでだにも　","ぬれにぞぬれし　いろはかはらず","ぬれにそぬれし　いろはかはらす","ぬれにそぬれしいろはかはらす","みせばやな　をじまのあまの　そでだにも　ぬれにぞぬれし　いろはかはらず"]
[91,"きりぎりす　なくやしもよの　さむしろに　","ころもかたしき　ひとりかもねむ","ころもかたしき　ひとりかもねむ","ころもかたしきひとりかもねむ","きりぎりす　なくやしもよの　さむしろに　ころもかたしき　ひとりかもねむ"]
[92,"わがそでは　しほひにみえぬ　おきのいしの　","ひとこそしらね　かわくまもなし","ひとこそしらね　かわくまもなし","ひとこそしらねかわくまもなし","わがそでは　しほひにみえぬ　おきのいしの　ひとこそしらね　かわくまもなし"]
[93,"よのなかは　つねにもがもな　なぎさこぐ　","あまのをぶねの　つなでかなしも","あまのをふねの　つなてかなしも","あまのをふねのつなてかなしも","よのなかは　つねにもがもな　なぎさこぐ　あまのをぶねの　つなでかなしも"]
[94,"みよしのの　やまのあきかぜ　さよふけて　","ふるさとさむく　ころもうつなり","ふるさとさむく　ころもうつなり","ふるさとさむくころもうつなり","みよしのの　やまのあきかぜ　さよふけて　ふるさとさむく　ころもうつなり"]
[95,"おほけなく　うきよのたみに　おほふかな　","わがたつそまに　すみぞめのそで","わかたつそまに　すみそめのそて","わかたつそまにすみそめのそて","おほけなく　うきよのたみに　おほふかな　わがたつそまに　すみぞめのそで"]
[96,"はなさそふ　あらしのにはの　ゆきならで　","ふりゆくものは　わがみなりけり","ふりゆくものは　わかみなりけり","ふりゆくものはわかみなりけり","はなさそふ　あらしのにはの　ゆきならで　ふりゆくものは　わがみなりけり"]
[97,"こぬひとを　まつほのうらの　ゆふなぎに　","やくやもしほの　みもこがれつつ","やくやもしほの　みもこかれつつ","やくやもしほのみもこかれつつ","こぬひとを　まつほのうらの　ゆふなぎに　やくやもしほの　みもこがれつつ"]
[98,"かぜそよぐ　ならのをがはの　ゆふぐれは　","みそぎぞなつの　しるしなりける","みそきそなつの　しるしなりける","みそきそなつのしるしなりける","かぜそよぐ　ならのをがはの　ゆふぐれは　みそぎぞなつの　しるしなりける"]
[99,"ひともをし　ひともうらめし　あぢきなく　","よをおもふゆゑに　ものおもふみは","よをおもふゆゑに　ものおもふみは","よをおもふゆゑにものおもふみは","ひともをし　ひともうらめし　あぢきなく　よをおもふゆゑに　ものおもふみは"]
[100,"ももしきや　ふるきのきばの　しのぶにも　","なほあまりある　むかしなりけり","なほあまりある　むかしなりけり","なほあまりあるむかしなりけり","ももしきや　ふるきのきばの　しのぶにも　なほあまりある　むかしなりけり"]